bitfinex/quotes_ETHUSD_20240925
["timestamp","ask_amount","ask_price","bid_price","bid_amount"]
[1727295117116,0.0369732,2584.2,2584.1,11.6480716]
[1727295117273,0.0369732,2584.2,2584.1,11.15903187]
[1727295117474,0.0369732,2584.2,2584.1,12.37992974]
[1727295117778,0.0369732,2584.2,2584.1,12.37985066]
[1727295118091,0.0369732,2584.2,2584.1,14.11189277]
[1727295118296,0.0369732,2585.0,2584.9,3.86862]
[1727295123644,0.0369732,2585.0,2584.9,8.23292]
[1727295129020,0.0369732,2585.0,2584.9,9.10004452]
[1727295129316,0.8229732,2585.8,2584.9,9.10004452]
[1727295129317,0.8229732,2585.8,2585.5,3.86765]
[1727295130517,0.8229732,2585.8,2585.6,3.8675]
[1727295131718,0.0369732,2585.8,2585.7,4.41742]
[1727295133521,0.0369732,2585.8,2585.7,8.21082]
[1727295133726,0.0369732,2585.8,2585.7,9.78437972]
[1727295134551,0.0369732,2585.8,2585.7,8.99097972]
[1727295134758,0.0369732,2585.8,2585.6,3.86749]
[1727295136454,0.0369732,2585.8,2585.6,7.73498]
[1727295136759,0.0369732,2585.8,2585.6,3.86749]
[1727295137063,0.0369732,2585.8,2585.6,7.73496]
[1727295138770,0.0369732,2585.8,2585.7,3.86742]
[1727295139434,0.0369732,2585.8,2585.6,3.86747]
[1727295140351,0.77,2585.7,2585.3,3.868]
[1727295140733,0.77,2585.7,2585.5,3.86765]
[1727295142434,0.77,2585.7,2585.6,3.86757]
[1727295142874,0.77,2585.7,2585.3,3.8679]
[1727295143081,0.77,2585.7,2585.5,3.86771]
[1727295144964,0.77,2585.7,2585.4,3.86785]
[1727295145536,0.77,2585.7,2585.3,3.86801]
[1727295145841,0.7548,2585.5,2585.2,3.86805]
[1727295147631,0.7548,2585.5,2585.2,7.73612]
[1727295148240,0.7548,2585.5,2585.3,3.86795]
[1727295148445,0.7548,2585.5,2585.4,3.86787]
[1727295148756,0.7773,2585.7,2585.5,3.86768]
[1727295150368,0.7914,2585.5,2585.2,3.86807]
[1727295150588,4.65913,2585.5,2585.1,3.8683]
[1727295150792,0.7914,2585.4,2585.1,3.8683]
[1727295151761,0.7914,2585.4,2585.1,7.73653]
[1727295152171,0.7914,2585.4,2585.1,3.86823]
[1727295152388,0.7914,2585.4,2584.9,3.86851]
[1727295152389,3.86797,2585.4,2584.9,3.86851]
[1727295152590,3.86818,2585.2,2584.8,3.86869]
[1727295152757,4.69032,2585.3,2584.8,3.86869]
[1727295153090,0.8223,2585.2,2584.9,3.86862]
[1727295153693,0.8223,2585.2,2585.0,3.86844]
[1727295154352,0.8223,2585.2,2584.9,3.86861]
[1727295154559,3.86767,2585.6,2585.0,3.86846]
[1727295154758,0.8223,2585.5,2585.2,3.86805]
[1727295159179,0.8223,2585.5,2585.0,3.86836]
[1727295159492,0.8223,2585.5,2585.1,3.86831]
[1727295159655,4.69003,2585.5,2585.0,4.4145896]
[1727295159855,4.69003,2585.5,2585.0,8.2829796]
[1727295160494,4.69003,2585.5,2585.0,8.2829696]
[1727295161600,4.69003,2585.5,2585.0,4.4145896]
[1727295161753,4.69003,2585.5,2585.0,8.2829796]
[1727295162990,4.69003,2585.5,2585.0,4.4145896]
[1727295163859,3.86795,2585.4,2584.9,3.86859]
[1727295164063,0.7869,2585.1,2584.8,3.86875]
[1727295164403,0.7869,2585.1,2584.6,7.70148]
[1727295164404,0.7869,2585.1,2584.7,6.86891]
[1727295164697,0.7869,2585.1,2584.7,8.025947]
[1727295166912,0.7869,2585.1,2584.9,3.0]
[1727295171913,0.7869,2585.1,2584.9,6.86861]
[1727295177230,5.27887352,2585.7,2585.5,3.86759]
[1727295177231,1.21099034,2585.7,2585.5,3.86759]
[1727295177537,0.0369732,2585.8,2585.5,3.86771]
[1727295178301,0.0369732,2585.8,2585.1,1.3588]
[1727295178302,3.9042732,2585.8,2585.4,3.86779]
[1727295178510,0.808,2585.7,2585.3,7.73581]
[1727295178708,0.808,2585.7,2585.3,3.8679]
[1727295179401,0.808,2585.7,2585.3,7.73584]
[1727295179835,4.67544,2585.7,2585.3,3.8679]
[1727295180134,0.808,2585.7,2585.3,7.73582]
[1727295180700,0.808,2585.7,2585.4,3.86787]
[1727295181941,0.808,2585.7,2585.3,3.8679]
[1727295182141,0.808,2585.7,2585.3,7.73583]
[1727295182494,0.808,2585.7,2585.3,3.8679]
[1727295182697,0.808,2585.7,2585.4,3.86787]
[1727295183512,3.9042632,2585.8,2585.7,3.86742]
[1727295183513,0.0369732,2585.8,2585.7,3.86742]
[1727295183709,0.0369732,2585.8,2585.7,4.41742]
[1727295183898,0.0369732,2585.8,2585.7,8.17512]
[1727295186631,0.0369732,2585.8,2585.7,11.82390824]
[1727295186836,0.0369732,2585.8,2585.7,15.88626045]
[1727295187057,0.0369732,2585.8,2585.7,16.69719923]
[1727295187245,0.0369732,2585.8,2585.7,15.56237656]
[1727295187403,0.0369732,2585.8,2585.7,15.88623663]
[1727295187703,0.0369732,2585.8,2585.7,15.88498383]
[1727295188123,0.0369732,2585.8,2585.7,14.58414261]
[1727295188328,0.0369732,2585.8,2585.7,14.26028254]
[1727295188523,0.0369732,2585.8,2585.7,10.6114943]
[1727295188728,0.0369732,2585.8,2585.7,9.74426682]
[1727295189576,0.0369732,2586.5,2586.4,6.86637]
[1727295189784,0.0369732,2586.5,2586.4,8.17277]
[1727295202985,0.0369732,2586.5,2586.4,7.41637]
[1727295205988,0.0369732,2586.5,2586.4,6.86637]
[1727295206187,0.8500732,2586.5,2586.4,6.86637]
[1727295207467,0.8500732,2586.5,2586.4,3.86637]
[1727295216981,0.8500732,2586.5,2586.3,3.8665]
[1727295217688,0.8500732,2586.5,2586.4,3.86637]
[1727295219079,0.0369732,2586.5,2586.4,3.86637]
[1727295219295,0.0369732,2586.5,2586.4,4.253007]
[1727295219969,0.0369732,2586.5,2586.4,4.32976548]
[1727295228202,0.0369732,2586.5,2586.4,0.386637]
[1727295228373,0.0369732,2586.5,2586.4,4.32976542]
[1727295229220,0.0369732,2586.5,2586.4,5.15686542]
[1727295230808,0.0369732,2586.5,2586.4,8.70686522]
[1727295231019,0.0369732,2586.5,2586.4,8.630107]
[1727295232003,0.8567732,2586.5,2586.4,0.386637]
[1727295232210,0.8567732,2586.5,2586.2,3.86665]
[1727295232703,0.8567732,2586.5,2586.3,3.86651]
[1727295233697,0.8567732,2586.5,2586.4,0.07677056]
[1727295233897,0.0369732,2586.5,2586.4,3.86637]
[1727295234110,0.0369732,2586.5,2586.4,4.56068306]
[1727295241201,0.0369732,2586.5,2586.4,5.4300702]
[1727295241516,0.0369732,2586.5,2586.4,5.43008541]
[1727295241720,0.0369732,2586.5,2586.4,5.75457031]
[1727295242395,0.0369732,2586.5,2586.4,5.83131832]
[1727295242620,0.0369732,2586.5,2586.4,10.58098593]
[1727295242933,0.0369732,2586.5,2586.4,10.50423792]
[1727295243296,0.0369732,2586.5,2586.4,10.82873113]
[1727295245129,0.0369732,2586.5,2586.4,10.82916424]
[1727295246235,0.0369732,2586.5,2586.4,10.50467103]
[1727295246926,0.0369732,2586.5,2586.4,10.82924232]
[1727295247125,0.0369732,2586.5,2586.4,6.19287232]
[1727295247427,0.8648732,2586.5,2586.4,3.0]
[1727295249334,0.8648732,2586.5,2586.2,8.17144779]
[1727295249533,0.8648732,2586.5,2586.3,4.73643349]
[1727295249742,0.8648732,2586.5,2586.4,3.0]
[1727295249897,0.8648732,2586.5,2586.3,4.3048435]
[1727295250098,0.8648732,2586.5,2586.4,3.0]
[1727295250297,0.8648732,2586.5,2586.3,3.86652]
[1727295250298,0.8648732,2586.5,2586.3,3.32469304]
[1727295251409,0.8648732,2586.5,2586.3,4.19121304]
[1727295252211,0.8648732,2586.5,2586.3,0.32469304]
[1727295255216,0.8648732,2586.5,2586.2,3.0]
[1727295255630,0.8648732,2586.5,2586.2,6.86666]
[1727295256023,0.8648732,2586.5,2586.2,3.0]
[1727295256233,0.8648732,2586.5,2586.2,6.86667]
[1727295256467,0.8648732,2586.5,2586.2,3.0]
[1727295256624,0.7616,2586.3,2586.0,1.30479794]
[1727295256923,0.7616,2586.3,2586.0,3.8669]
[1727295257118,0.7616,2586.3,2586.1,3.86681]
[1727295257768,0.7616,2586.3,2586.2,3.86667]
[1727295257917,2.05156354,2586.5,2586.2,3.86667]
[1727295258120,0.8405732,2586.5,2586.1,4.72115334]
[1727295258358,0.8405732,2586.5,2586.2,3.86656]
[1727295259055,2.05156354,2586.5,2586.1,4.72115334]
[1727295259259,2.05156354,2586.5,2586.1,3.86673]
[1727295259834,2.05156354,2586.5,2586.2,3.86663]
[1727295260059,2.05156354,2586.5,2586.1,3.86673]
[1727295260272,2.05156354,2586.5,2586.1,7.73344]
[1727295260423,2.05156354,2586.5,2586.2,3.86665]
[1727295260625,2.05156354,2586.5,2586.1,3.86671]
[1727295262129,2.05156354,2586.5,2585.9,3.86701]
[1727295262330,2.05156354,2586.5,2585.9,7.73402]
[1727295262331,3.86644,2586.4,2585.9,7.73402]
[1727295262959,3.86644,2586.4,2585.9,3.86701]
[1727295263140,3.86644,2586.4,2585.9,7.73406]
[1727295263351,5.07743034,2586.4,2585.9,3.86701]
[1727295263734,4.61852,2586.3,2585.8,5.17129804]
[1727295263960,4.61852,2586.3,2585.9,3.0]
[1727295264574,4.61852,2586.3,2585.8,3.0]
[1727295264743,0.7519,2586.3,2585.9,3.86711]
[1727295266161,4.61849,2586.3,2585.9,3.86712]
[1727295266566,0.7519,2586.3,2585.9,3.86712]
[1727295266955,0.7519,2586.3,2585.9,7.73416]
[1727295267141,0.7519,2586.3,2585.9,9.13902367]
[1727295269234,0.7519,2586.3,2585.9,5.27190367]
[1727295269442,0.7519,2586.3,2586.1,3.86675]
[1727295269641,0.8219732,2586.5,2586.3,3.86648]
[1727295269870,0.8219732,2586.5,2586.3,4.88992844]
[1727295270175,0.8219732,2586.5,2586.3,1.02344844]
[1727295270356,0.8219732,2586.5,2586.2,7.73326]
[1727295270548,0.8219732,2586.5,2586.2,3.86659]
[1727295272385,0.8219732,2586.5,2585.8,10.73431]
[1727295272386,4.65249,2586.4,2585.8,10.73431]
[1727295272586,4.65249,2586.4,2586.0,3.0]
[1727295274582,4.65249,2586.4,2586.0,3.86696]
[1727295274793,0.786,2586.4,2586.0,4.94037]
[1727295275103,0.786,2586.4,2586.2,3.86666]
[1727295275960,0.786,2586.4,2586.0,5.72817]
[1727295276158,0.786,2586.4,2586.2,3.86667]
[1727295276503,0.786,2586.4,2586.0,5.72806]
[1727295276795,0.786,2586.4,2586.1,4.739606]
[1727295279283,0.786,2586.4,2586.1,0.872806]
[1727295279599,0.786,2586.4,2586.0,8.52153]
[1727295280160,0.786,2586.4,2586.1,3.86681]
[1727295282402,0.786,2586.4,2586.2,3.86666]
[1727295283407,0.786,2586.4,2586.2,7.73326]
[1727295283808,0.786,2586.4,2586.2,3.8666]
[1727295290026,4.65237,2586.4,2586.0,3.86687]
[1727295290181,10.31986369,2586.4,2585.9,6.8671]
[1727295290386,6.45339369,2586.4,2585.9,6.8671]
[1727295291282,1.99699034,2586.4,2586.1,3.86673]
[1727295291484,0.786,2586.4,2586.1,3.86673]
[1727295291931,1.99699034,2586.4,2586.1,3.86673]
[1727295292116,0.786,2586.4,2586.1,3.86673]
[1727295293203,1.99699034,2586.4,2586.2,3.86667]
[1727295293404,1.21099034,2586.4,2586.2,0.386667]
[1727295293609,1.21099034,2586.4,2586.2,3.86666]
[1727295295934,1.21099034,2586.4,2586.2,3.86659]
[1727295296137,1.65856954,2586.5,2586.4,3.86637]
[1727295296138,1.24796354,2586.5,2586.4,3.86637]
[1727295296309,0.0369732,2586.5,2586.4,3.86637]
[1727295296496,0.0369732,2586.5,2586.4,4.80793244]
[1727295296698,0.0369732,2586.5,2586.4,5.58513244]
[1727295300554,0.0369732,2586.5,2586.3,6.86645]
[1727295300750,0.0369732,2586.5,2586.4,3.86637]
[1727295301670,0.0369732,2586.5,2586.4,5.5491044]
[1727295301852,0.0369732,2586.5,2586.4,9.96846092]
[1727295302029,0.0369732,2586.5,2586.4,12.25551835]
[1727295302553,0.0369732,2586.5,2586.4,9.70342743]
[1727295310379,0.0369732,2586.5,2586.4,13.55655796]
[1727295310936,0.0369732,2586.5,2586.4,14.36616132]
[1727295311868,0.0369732,2586.5,2586.4,13.55655796]
[1727295312476,0.0369732,2586.5,2586.4,13.55533648]
[1727295312982,0.0369732,2587.3,2587.2,9.9070144]
[1727295313783,0.0369732,2587.3,2587.2,8.22428]
[1727295315442,0.0369732,2587.3,2587.2,9.9070144]
[1727295316005,0.0369732,2587.3,2587.2,12.88177383]
[1727295316187,0.0369732,2587.3,2587.2,14.85119107]
[1727295316473,0.0369732,2587.3,2587.2,15.99879728]
[1727295316648,0.0369732,2587.3,2587.2,15.99753452]
[1727295317055,0.0369732,2587.3,2587.2,14.70025474]
[1727295317462,0.0369732,2587.3,2587.2,13.83455972]
[1727295318059,0.0369732,2587.3,2587.2,10.19369724]
[1727295318968,0.0369732,2587.3,2587.2,3.86518]
[1727295319683,0.0369732,2587.3,2587.2,3.94186258]
[1727295319891,0.0369732,2587.3,2587.2,3.86518]
[1727295320244,0.0369732,2587.3,2587.2,7.41518]
[1727295329875,0.8464732,2587.3,2587.1,3.86525]
[1727295330103,0.8464732,2587.3,2586.9,3.86561]
[1727295330270,1.68169377,2587.3,2587.0,3.86547]
[1727295331399,0.8464732,2587.3,2587.0,3.86547]
[1727295332376,0.8464732,2587.3,2586.9,3.86561]
[1727295332377,0.8464732,2587.3,2586.9,3.86554]
[1727295332574,0.8464732,2587.3,2586.9,3.86553]
[1727295333303,0.8095,2587.1,2586.8,3.0]
[1727295333471,0.8095,2587.0,2586.6,6.86607]
[1727295333672,4.67506,2587.0,2586.4,3.86626]
[1727295333909,0.8095,2586.9,2586.4,3.86626]
[1727295334122,0.8095,2586.9,2586.5,3.86622]
[1727295334473,0.8095,2586.9,2586.4,3.86628]
[1727295334474,1.30509958,2586.9,2586.4,3.86628]
[1727295335001,0.8095,2586.8,2586.4,3.0]
[1727295335529,0.8095,2586.7,2586.4,3.0]
[1727295336387,0.09665304,2586.6,2586.3,3.0]
[1727295336702,0.8095,2586.5,2586.3,3.0]
[1727295337068,0.8095,2586.5,2586.3,6.86649]
[1727295337273,0.8095,2586.5,2586.4,3.86637]
[1727295337519,3.86556,2587.0,2586.4,3.86637]
[1727295337520,0.8095,2586.9,2586.4,3.86637]
[1727295337812,1.196056,2586.9,2586.4,3.86637]
[1727295338336,5.061696,2586.9,2586.4,3.86637]
[1727295338537,4.67514,2586.9,2586.4,3.86637]
[1727295341301,4.67514,2586.9,2586.5,3.86622]
[1727295348171,0.8095,2586.9,2586.3,3.0]
[1727295348368,0.8095,2586.9,2586.7,3.86591]
[1727295348709,0.8095,2586.9,2586.6,3.866]
[1727295349329,0.8095,2586.9,2586.7,3.86591]
[1727295350962,0.8095,2586.9,2586.5,3.86615]
[1727295351274,0.8095,2586.9,2586.6,3.86607]
[1727295351436,0.8095,2586.9,2586.6,4.716472]
[1727295351769,0.8095,2586.9,2586.7,3.86591]
[1727295352559,0.8095,2586.9,2586.6,4.716432]
[1727295354283,0.8095,2586.9,2586.6,0.850402]
[1727295354978,0.8095,2586.9,2586.4,3.0]
[1727295355387,5.54778792,2587.0,2586.4,3.0]
[1727295355388,3.86579,2586.8,2586.4,3.0]
[1727295355558,0.7883,2586.6,2586.2,7.4166]
[1727295355755,0.7883,2586.6,2586.2,6.8666]
[1727295355964,0.7883,2586.6,2586.2,8.021763]
[1727295356150,0.7883,2586.6,2586.2,4.155163]
[1727295356353,0.7883,2586.6,2586.3,3.86651]
[1727295356767,0.7883,2586.6,2586.2,4.155163]
[1727295356973,0.7883,2586.6,2586.2,8.021763]
[1727295357462,4.6544,2586.6,2586.2,3.0]
[1727295357663,0.7883,2586.6,2586.2,6.86661]
[1727295357847,4.65445,2586.6,2586.0,6.86687]
[1727295358048,4.65445,2586.6,2586.1,1.154617]
[1727295358288,4.65445,2586.6,2586.2,3.0]
[1727295360883,4.65445,2586.6,2586.2,6.86666]
[1727295361121,0.7883,2586.6,2586.2,6.86666]
[1727295361464,0.7883,2586.6,2586.3,3.86643]
[1727295362695,0.7883,2586.6,2586.4,3.86635]
[1727295362891,0.7582,2586.8,2586.5,3.86621]
[1727295363189,6.76663504,2587.2,2586.6,3.86597]
[1727295363190,0.7582,2587.1,2586.6,3.86597]
[1727295363348,0.7582,2587.1,2586.7,3.86588]
[1727295363892,0.7582,2587.1,2586.8,3.86577]
[1727295364092,0.7582,2587.1,2586.7,3.86592]
[1727295365195,3.86555,2587.0,2586.6,0.55482079]
[1727295365486,0.7712,2586.8,2586.5,3.0]
[1727295367891,0.7712,2586.8,2586.5,6.86611]
[1727295369787,0.7712,2586.8,2586.5,3.0]
[1727295369990,0.7712,2586.8,2586.5,6.86622]
[1727295370310,0.7712,2586.8,2586.5,3.0]
[1727295371318,3.86609,2586.6,2586.3,3.0]
[1727295371486,0.7805,2586.7,2586.3,3.0]
[1727295372168,4.6465,2586.7,2586.3,3.0]
[1727295374283,3.86608,2586.6,2586.3,3.0]
[1727295374479,0.827,2586.5,2586.3,3.0]
[1727295376250,0.827,2586.5,2586.2,3.86657]
[1727295376555,6.66571547,2586.5,2586.0,3.86688]
[1727295376862,0.8132,2586.2,2585.8,3.86715]
[1727295377214,0.8132,2586.2,2585.9,3.86705]
[1727295379333,0.8132,2586.2,2586.0,3.86696]
[1727295379720,2.04080712,2586.4,2586.1,3.8668]
[1727295380037,1.62159634,2586.6,2586.3,3.86652]
[1727295380038,2.04080712,2586.6,2586.3,3.86652]
[1727295382555,5.90693712,2586.6,2586.1,3.86671]
[1727295383259,5.90693712,2586.6,2586.1,4.332271]
[1727295383669,5.90693712,2586.6,2586.2,3.86664]
[1727295385474,5.90693712,2586.6,2586.1,4.332271]
[1727295386833,9.77310712,2586.6,2586.1,4.332271]
[1727295387347,3.86644,2586.4,2586.0,3.86693]
[1727295387547,5.08534712,2586.5,2586.0,3.86687]
[1727295387753,5.08534712,2586.5,2585.9,0.7889]
[1727295387754,5.08534712,2586.5,2586.1,3.86682]
[1727295388581,5.08534712,2586.5,2585.9,0.7889]
[1727295388582,5.08550712,2586.4,2585.9,7.65599]
[1727295388737,5.08550712,2586.4,2585.9,9.1769755]
[1727295389049,3.8664,2586.4,2585.9,9.1769755]
[1727295389464,0.7968,2586.3,2585.9,8.3880755]
[1727295390246,0.7968,2586.3,2586.0,1.37689405]
[1727295394802,4.66336,2586.3,2586.0,1.37689405]
[1727295394998,3.86668,2586.2,2585.9,3.0]
[1727295395289,3.86668,2586.2,2585.8,3.0]
[1727295395290,3.86683,2586.1,2585.8,3.0]
[1727295395497,0.7968,2585.4,2585.0,0.81052187]
[1727295395652,3.86827,2585.2,2584.7,2.12963337]
[1727295395849,3.86827,2585.2,2584.7,5.06073671]
[1727295396377,3.86818,2585.2,2584.7,4.23373671]
[1727295396594,3.8681,2585.3,2584.7,4.23373671]
[1727295396778,3.8681,2585.3,2584.8,3.86874]
[1727295397192,2.0148823,2585.4,2584.8,4.67898767]
[1727295397193,0.7968,2585.4,2584.8,4.67898767]
[1727295397493,4.66469,2585.4,2585.0,3.86845]
[1727295398198,4.66469,2585.4,2584.9,3.86861]
[1727295399088,3.86812,2585.3,2584.8,4.67898767]
[1727295400258,3.86812,2585.3,2584.8,4.67894767]
[1727295400565,3.86812,2585.3,2584.8,8.54761767]
[1727295401552,7.73628,2585.3,2584.8,4.67891767]
[1727295401898,3.86812,2585.3,2584.8,8.54761767]
[1727295402234,3.86812,2585.3,2584.8,4.67891767]
[1727295402559,3.96482884,2585.3,2584.8,3.86867]
[1727295402763,3.96482884,2585.3,2584.3,3.86943]
[1727295402764,0.8023,2584.3,2583.6,0.87741014]
[1727295402957,0.8023,2584.3,2583.6,0.06688827]
[1727295402958,4.69011,2584.3,2583.6,0.06688827]
[1727295403209,9.77432522,2584.3,2583.6,0.06688827]
[1727295403499,12.67756489,2584.3,2583.6,0.06688827]
[1727295403708,12.67756489,2584.3,2583.5,0.0369732]
[1727295403709,14.30167462,2584.3,2583.5,0.0369732]
[1727295403885,12.67756489,2584.3,2583.5,0.0369732]
[1727295404070,4.69486,2583.6,2583.5,0.0369732]
[1727295404270,4.69486,2583.6,2582.8,13.30523161]
[1727295404272,3.87161,2582.9,2582.8,13.30523161]
[1727295404575,3.87176,2582.8,2582.7,0.0369732]
[1727295404758,5.1898588,2582.8,2582.7,0.0369732]
[1727295404961,5.89504506,2582.8,2582.7,0.0369732]
[1727295405283,9.54022566,2582.8,2582.7,0.0369732]
[1727295406379,8.3189406,2582.8,2582.7,0.0369732]
[1727295408192,3.87136,2583.1,2582.7,0.0369732]
[1727295408709,7.5165406,2583.1,2582.7,0.0369732]
[1727295409408,3.87147,2583.0,2582.7,0.0369732]
[1727295409977,7.5165406,2583.1,2582.7,0.0369732]
[1727295410179,3.8715,2583.0,2582.7,0.0369732]
[1727295411020,8.95983006,2583.1,2582.7,0.0369732]
[1727295411876,3.87136,2583.1,2582.7,0.0369732]
[1727295413120,3.87162,2582.9,2582.7,0.0369732]
[1727295413540,7.5169406,2582.8,2582.7,0.0369732]
[1727295413724,8.3274406,2582.8,2582.7,0.0369732]
[1727295418548,3.87176,2582.8,2582.7,0.0369732]
[1727295420209,4.56431378,2582.8,2582.7,0.0369732]
[1727295421053,3.87161,2583.0,2582.7,0.0369732]
[1727295421249,3.87169,2582.9,2582.7,0.0369732]
[1727295424277,3.87176,2582.8,2582.7,0.0369732]
[1727295425116,3.87169,2582.9,2582.7,0.0369732]
[1727295425659,0.09679925,2583.0,2582.7,0.0369732]
[1727295425830,3.87155,2583.0,2582.7,0.0369732]
[1727295426039,7.74311,2583.0,2582.7,0.0369732]
[1727295426566,3.87162,2582.9,2582.7,0.0369732]
[1727295427469,3.87176,2582.8,2582.7,0.0369732]
[1727295427851,3.87163,2582.9,2582.7,0.0369732]
[1727295428244,7.74334,2582.9,2582.7,0.0369732]
[1727295428574,3.87163,2582.9,2582.7,0.0369732]
[1727295428757,3.96842928,2582.9,2582.7,0.0369732]
[1727295429279,3.87163,2582.9,2582.7,0.0369732]
[1727295430145,3.87141,2583.1,2582.7,0.0369732]
[1727295430348,3.87148,2583.0,2582.7,0.0369732]
[1727295432149,8.1643,2583.4,2582.7,0.0369732]
[1727295432361,3.87081,2583.5,2583.0,3.87146]
[1727295432690,3.87081,2583.5,2583.0,3.87135]
[1727295432859,3.87094,2583.4,2582.9,4.42161]
[1727295433554,3.87094,2583.4,2583.0,3.87146]
[1727295434443,3.87008,2584.0,2583.1,0.83]
[1727295434644,4.63777,2584.4,2583.7,3.87029]
[1727295434892,4.63777,2584.4,2583.9,3.87007]
[1727295434893,0.7683,2584.4,2583.9,3.87007]
[1727295435196,0.7683,2584.4,2583.7,6.87039]
[1727295435197,3.86969,2584.2,2583.7,6.87039]
[1727295435893,0.7683,2584.4,2583.6,0.83]
[1727295435894,3.96664918,2584.1,2583.6,3.83]
[1727295436107,3.8699,2584.1,2583.6,3.83]
[1727295436259,7.73981,2584.1,2583.6,3.83]
[1727295436462,3.86998,2584.0,2583.6,3.83]
[1727295436959,3.8699,2584.1,2583.6,3.83]
[1727295437193,3.8699,2584.1,2583.6,7.70055]
[1727295437391,3.8699,2584.1,2583.6,7.70051]
[1727295437800,3.86957,2584.3,2583.7,3.87041]
[1727295438209,3.86957,2584.3,2583.7,7.74072]
[1727295438498,4.63779,2584.4,2583.9,3.87011]
[1727295438697,3.86949,2584.4,2583.9,3.87011]
[1727295438905,4.256439,2584.4,2583.8,3.87026]
[1727295439066,4.256319,2584.4,2583.9,3.87008]
[1727295439262,3.86937,2584.4,2584.0,3.86996]
[1727295439575,3.86937,2584.4,2583.9,3.86998]
[1727295440397,3.86959,2584.3,2583.7,3.87028]
[1727295440962,3.86952,2584.3,2583.7,3.87028]
[1727295441296,3.86948,2584.4,2583.9,3.87004]
[1727295441804,3.86948,2584.4,2583.8,7.74034]
[1727295442105,3.86948,2584.4,2583.9,3.87004]
[1727295443095,3.86956,2584.3,2583.8,3.87015]
[1727295443864,3.86956,2584.3,2583.8,7.74033]
[1727295444207,3.86956,2584.3,2583.8,3.87015]
[1727295444897,3.86948,2584.4,2583.9,3.86998]
[1727295445897,7.73896,2584.4,2583.9,3.86998]
[1727295446400,3.86948,2584.4,2583.9,3.86998]
[1727295446579,7.73893,2584.4,2583.9,3.86998]
[1727295447704,3.86954,2584.3,2583.9,3.86998]
[1727295448072,3.86945,2584.4,2583.9,3.86998]
[1727295450326,0.7859,2585.1,2584.5,3.86911]
[1727295450480,0.7859,2585.1,2584.5,0.7834]
[1727295450481,3.86857,2585.0,2584.5,0.7834]
[1727295450812,3.86857,2585.0,2584.6,3.86904]
[1727295451194,3.86857,2585.0,2584.5,0.7834]
[1727295451399,3.86878,2584.8,2584.5,0.7834]
[1727295451591,3.86892,2584.7,2584.2,8.52256]
[1727295451793,3.96564898,2584.7,2584.2,4.65297]
[1727295452011,4.6523629,2584.7,2584.2,8.52255]
[1727295452219,0.7834429,2584.7,2584.3,3.86938]
[1727295452422,3.86878,2584.8,2584.3,3.86938]
[1727295452619,7.73769,2584.8,2584.2,8.52255]
[1727295452791,3.86878,2584.8,2584.3,3.86943]
[1727295454188,3.86863,2584.9,2584.4,3.86928]
[1727295454382,3.86863,2584.9,2584.2,0.7834]
[1727295454383,7.73736,2584.9,2584.3,3.86941]
[1727295454588,3.86863,2584.9,2584.4,3.86934]
[1727295454913,3.86863,2584.9,2584.2,0.7834]
[1727295455084,3.86863,2584.9,2584.2,5.35523606]
[1727295455605,7.73733,2584.9,2584.2,5.35523606]
[1727295456383,3.86863,2584.9,2584.2,3.7834]
[1727295456588,7.73736,2584.9,2584.2,0.7834]
[1727295456906,3.86892,2584.7,2584.2,0.7834]
[1727295457097,3.86908,2584.6,2584.2,0.7834]
[1727295457316,4.64288,2584.6,2584.2,0.7834]
[1727295458683,0.7738,2584.6,2584.0,1.3334]
[1727295459020,3.86922,2584.5,2584.0,1.3334]
[1727295460202,3.86908,2584.6,2584.0,1.3334]
[1727295462892,3.86922,2584.5,2584.0,1.3334]
[1727295463894,7.73852,2584.5,2584.0,1.3334]
[1727295464093,0.465447,2585.0,2584.0,1.3334]
[1727295464307,3.86926,2584.5,2584.0,1.3334]
[1727295464493,3.86952,2584.3,2584.0,1.3334]
[1727295465129,0.09673678,2584.4,2584.0,0.7834]
[1727295465130,3.86978,2584.2,2584.0,0.7834]
[1727295466535,3.86976,2584.2,2584.0,0.7834]
[1727295470409,3.86981,2584.1,2584.0,0.7834]
[1727295474606,3.86963,2584.3,2584.0,0.7834]
[1727295475040,3.86949,2584.4,2584.0,0.7834]
[1727295475343,3.86967,2584.2,2584.0,0.7834]
[1727295476812,3.86981,2584.1,2584.0,0.7834]
[1727295477146,3.86948,2584.4,2584.0,1.16174]
[1727295477413,3.86948,2584.4,2584.1,0.55]
[1727295477564,3.86918,2584.6,2584.1,0.55]
[1727295477565,3.86923,2584.5,2584.1,0.55]
[1727295478927,3.86948,2584.4,2584.1,0.55]
[1727295479270,7.73894,2584.4,2584.1,0.55]
[1727295479624,3.86953,2584.3,2584.1,0.55]
[1727295480530,3.86969,2584.2,2584.0,0.7834]
[1727295481270,7.73946,2584.2,2584.0,0.7834]
[1727295482420,3.86969,2584.2,2584.0,0.7834]
[1727295482553,3.86981,2584.1,2584.0,0.7834]
[1727295482757,3.86981,2584.1,2583.7,3.8051]
[1727295482966,3.86981,2584.1,2583.7,0.8051]
[1727295482967,3.87005,2584.0,2583.7,0.8051]
[1727295483282,3.87013,2583.9,2583.7,0.8051]
[1727295483855,3.86999,2584.0,2583.7,3.8051]
[1727295484387,3.87012,2583.9,2583.7,0.8051]
[1727295484787,3.86997,2584.0,2583.7,0.8051]
[1727295485249,7.74006,2584.0,2583.7,0.8051]
[1727295485652,3.86997,2584.0,2583.7,0.8051]
[1727295488813,3.86984,2584.1,2583.7,0.8051]
[1727295489798,3.86984,2584.1,2583.7,4.6755]
[1727295491497,3.86997,2584.0,2583.7,0.8051]
[1727295492814,3.86983,2584.1,2583.7,0.8051]
[1727295493207,0.89492519,2584.1,2583.7,0.8051]
[1727295493410,0.89492519,2584.1,2583.4,1.3112]
[1727295493411,0.09675767,2584.0,2583.4,1.3112]